bitfinex/quotes_BTCUSD_20251011
["timestamp","ask_amount","ask_price","bid_price","bid_amount"]
[1760210175422,6.97944705,111720.0,111710.0,1e-08]
[1760210175623,7.08924768,111720.0,111710.0,1e-08]
[1760210175912,7.16534782,111720.0,111710.0,1e-08]
[1760210176130,7.21344167,111720.0,111710.0,1e-08]
[1760210176345,7.18162848,111720.0,111710.0,1e-08]
[1760210176559,7.1863095,111720.0,111710.0,1e-08]
[1760210176979,5.92288024,111720.0,111710.0,1e-08]
[1760210177179,5.92388024,111720.0,111710.0,1e-08]
[1760210178216,5.95552652,111720.0,111710.0,1e-08]
[1760210178621,5.92643892,111720.0,111710.0,1e-08]
[1760210179262,5.87834507,111720.0,111710.0,1e-08]
[1760210179677,5.77834508,111720.0,111710.0,1e-08]
[1760210179886,5.34370305,111720.0,111710.0,1e-08]
[1760210180090,5.64346372,111720.0,111710.0,1e-08]
[1760210180312,5.30346372,111720.0,111710.0,1e-08]
[1760210180598,5.33361562,111720.0,111710.0,1e-08]
[1760210180816,5.67361562,111720.0,111710.0,1e-08]
[1760210181036,5.67261562,111720.0,111710.0,1e-08]
[1760210181734,5.30246372,111720.0,111710.0,1e-08]
[1760210181957,5.19467297,111720.0,111710.0,1e-08]
[1760210182213,0.17901897,111720.0,111710.0,0.05083001]
[1760210182627,0.8385336,111720.0,111710.0,1e-08]
[1760210183476,1.1785336,111720.0,111710.0,1e-08]
[1760210184616,1.26725294,111720.0,111710.0,1e-08]
[1760210184813,6.25510694,111720.0,111710.0,1e-08]
[1760210185157,6.28525884,111720.0,111710.0,1e-08]
[1760210185362,6.91697347,111720.0,111710.0,1e-08]
[1760210187198,6.93597525,111720.0,111710.0,1e-08]
[1760210187401,6.91697347,111720.0,111710.0,1e-08]
[1760210188286,6.93599257,111720.0,111710.0,1e-08]
[1760210190031,6.96312649,111720.0,111710.0,1e-08]
[1760210190242,7.05749307,111720.0,111710.0,1e-08]
[1760210190465,7.18913934,111720.0,111710.0,1e-08]
[1760210190669,7.2160814,111720.0,111710.0,1e-08]
[1760210191014,7.24041523,111720.0,111710.0,1e-08]
[1760210191220,7.20876895,111720.0,111710.0,1e-08]
[1760210192051,7.17968135,111720.0,111710.0,1e-08]
[1760210192934,7.18068135,111720.0,111710.0,1e-08]
[1760210193155,7.06167511,111720.0,111710.0,1e-08]
[1760210193362,7.1616751,111720.0,111710.0,1e-08]
[1760210194201,0.54923499,111680.0,111670.0,0.09850362]
[1760210194408,1.19319014,111680.0,111670.0,0.09850362]
[1760210194631,1.20890014,111680.0,111670.0,0.09850362]
[1760210194830,1.22099014,111680.0,111670.0,0.02921327]
[1760210195047,1.24007735,111680.0,111670.0,0.02921327]
[1760210196003,1.24007735,111680.0,111670.0,0.03021327]
[1760210198261,6.31665069,111680.0,111670.0,0.03021327]
[1760210200007,6.22793135,111680.0,111670.0,0.03021327]
[1760210200639,6.93191832,111680.0,111670.0,0.03021327]
[1760210200848,6.32733761,111680.0,111670.0,0.03021327]
[1760210201447,1.33948361,111680.0,111670.0,0.03021327]
[1760210201780,6.32733761,111680.0,111670.0,0.03021327]
[1760210202106,1.40106903,111680.0,111670.0,0.03021327]
[1760210202287,1.40106903,111680.0,111670.0,0.02921327]
[1760210202493,6.38892303,111680.0,111670.0,0.02921327]
[1760210202908,6.38892303,111680.0,111670.0,0.00233327]
[1760210203142,6.41605695,111680.0,111670.0,0.00233327]
[1760210203576,1.42820295,111680.0,111670.0,0.00233327]
[1760210203774,6.41605695,111680.0,111670.0,0.00233327]
[1760210203979,6.38892303,111680.0,111670.0,0.00233327]
[1760210204198,6.30020369,111680.0,111670.0,0.00233327]
[1760210204404,6.26839231,111680.0,111670.0,0.00233327]
[1760210204613,1.23829641,111680.0,111670.0,0.00233327]
[1760210204815,1.19783545,111680.0,111670.0,0.00233327]
[1760210205023,1.22798735,111680.0,111670.0,0.00233327]
[1760210205225,6.34050922,111680.0,111670.0,0.00233327]
[1760210205431,6.38423857,111680.0,111670.0,0.00233327]
[1760210205649,6.38423825,111680.0,111670.0,0.00233327]
[1760210206261,7.01595288,111680.0,111670.0,0.00233327]
[1760210206462,1.42819563,111680.0,111670.0,0.00233327]
[1760210206674,6.41604963,111680.0,111670.0,0.00233327]
[1760210206879,6.3921911,111680.0,111670.0,0.00233327]
[1760210207297,6.38895058,111680.0,111670.0,0.00233327]
[1760210208715,1.40109658,111680.0,111670.0,0.00233327]
[1760210208912,6.38895058,111680.0,111670.0,0.00233327]
[1760210209408,1.40109658,111680.0,111670.0,0.00233327]
[1760210209609,6.17805611,111680.0,111670.0,0.00233327]
[1760210209771,6.3571392,111680.0,111670.0,0.00233327]
[1760210210176,6.3332458,111680.0,111670.0,0.00233327]
[1760210210376,1.3453918,111680.0,111670.0,0.00233327]
[1760210210605,6.3332458,111680.0,111670.0,0.00233327]
[1760210212263,6.3571392,111680.0,111670.0,0.00233327]
[1760210212868,1.3692852,111680.0,111670.0,0.00233327]
[1760210213013,6.3571392,111680.0,111670.0,0.00233327]
[1760210213393,1.3692852,111680.0,111670.0,0.00233327]
[1760210213601,6.3571392,111680.0,111670.0,0.00233327]
[1760210214612,6.26841986,111680.0,111670.0,0.00233327]
[1760210214821,1.19783545,111680.0,111670.0,0.00233327]
[1760210215022,1.22798735,111680.0,111670.0,0.00233327]
[1760210215230,6.24454338,111680.0,111670.0,0.00233327]
[1760210217569,1.24459938,111680.0,111670.0,0.00233327]
[1760210217786,0.83003545,111680.0,111670.0,0.05395327]
[1760210217995,0.82697824,111680.0,111670.0,0.00233327]
[1760210218187,0.88837589,111680.0,111670.0,0.00233327]
[1760210218514,1.22837589,111680.0,111670.0,0.00233327]
[1760210218846,6.21622989,111680.0,111670.0,0.00233327]
[1760210219423,0.53838936,111680.0,111670.0,0.05395327]
[1760210219558,0.9910209,111680.0,111670.0,0.05395327]
[1760210219761,0.17923361,111680.0,111670.0,0.05395327]
[1760210219959,1.17906824,111680.0,111670.0,0.00233327]
[1760210220210,1.1982345,111680.0,111670.0,0.00233327]
[1760210221725,1.1861445,111680.0,111670.0,0.00233327]
[1760210222356,1.1982345,111680.0,111670.0,0.00233327]
[1760210222941,1.2283864,111680.0,111670.0,0.00233327]
[1760210223117,6.2162404,111680.0,111670.0,0.00233327]
[1760210223321,6.33209366,111680.0,111670.0,0.00233327]
[1760210224169,6.98044903,111680.0,111670.0,0.00233327]
[1760210224374,6.98044903,111680.0,111650.0,0.07162362]
[1760210224375,6.80055033,111660.0,111650.0,0.07162362]
[1760210224530,6.84844282,111660.0,111650.0,0.07162362]
[1760210224757,6.87656282,111660.0,111650.0,0.07162362]
[1760210224971,0.17913121,111650.0,111640.0,0.0004]
[1760210225144,1.44256047,111650.0,111640.0,0.0004]
[1760210225512,1.79859047,111650.0,111640.0,0.01661]
[1760210226513,1.79859047,111650.0,111640.0,0.01761]
[1760210227492,1.42180541,111650.0,111640.0,0.01761]
[1760210230344,1.42180541,111650.0,111640.0,0.0014]
[1760210230755,1.42180541,111650.0,111640.0,0.00315072]
[1760210231188,1.43389541,111650.0,111640.0,0.00315072]
[1760210232030,1.46404731,111650.0,111640.0,0.00315072]
[1760210232244,6.54062065,111650.0,111640.0,0.00315072]
[1760210232689,6.56775457,111650.0,111640.0,0.00315072]
[1760210233801,1.57990057,111650.0,111640.0,0.00315072]
[1760210234031,6.56775457,111650.0,111640.0,0.00215072]
[1760210234239,6.56775457,111650.0,111640.0,0.00315072]
[1760210234667,6.56775457,111650.0,111640.0,0.00215072]
[1760210235081,1.57990057,111650.0,111640.0,0.00215072]
[1760210235291,6.56775457,111650.0,111640.0,0.00215072]
[1760210238012,1.57990057,111650.0,111640.0,0.00215072]
[1760210238215,6.56775457,111650.0,111640.0,0.00215072]
[1760210238639,1.57990057,111650.0,111640.0,0.00215072]
[1760210238842,6.56775457,111650.0,111640.0,0.00215072]
[1760210239049,1.57990057,111650.0,111640.0,0.00215072]
[1760210239253,6.56775457,111650.0,111640.0,0.00215072]
[1760210239673,1.57990057,111650.0,111640.0,0.00215072]
[1760210239879,5.53413517,111640.0,111630.0,1e-08]
[1760210240088,6.52158869,111640.0,111630.0,1e-08]
[1760210240293,5.66703335,111620.0,111610.0,0.07162362]
[1760210240479,6.05971755,111620.0,111610.0,0.07162362]
[1760210240687,6.08717755,111620.0,111610.0,0.07162362]
[1760210240879,6.08717755,111620.0,111590.0,0.0004]
[1760210240880,0.17921146,111600.0,111590.0,0.0004]
[1760210241089,1.41204601,111600.0,111590.0,0.0004]
[1760210241253,1.42741601,111600.0,111590.0,0.0004]
[1760210241458,1.46663993,111600.0,111590.0,0.0004]
[1760210241668,6.48464583,111600.0,111590.0,0.0004]
[1760210242065,2.41257291,111600.0,111590.0,0.0004]
[1760210242268,7.37129003,111600.0,111590.0,0.0014]
[1760210242639,7.40042691,111600.0,111590.0,0.0004]
[1760210243037,2.38343603,111600.0,111590.0,0.0004]
[1760210243313,7.46000937,111600.0,111590.0,0.0004]
[1760210243549,0.54941155,111570.0,111560.0,0.09850362]
[1760210243753,1.44209575,111570.0,111560.0,0.09850362]
[1760210243900,1.45746575,111570.0,111560.0,0.09850362]
[1760210244268,1.46955575,111570.0,111560.0,0.02688]
[1760210244885,1.45746575,111570.0,111560.0,0.05439]
[1760210245123,0.54066965,111570.0,111560.0,0.05439]
[1760210245321,1.40590385,111570.0,111560.0,0.07875]
[1760210245524,1.2266442,111570.0,111560.0,0.25802572]
[1760210245679,1.40590385,111570.0,111560.0,0.25802572]
[1760210245884,1.40590385,111570.0,111560.0,0.26269832]
[1760210246259,1.40590385,111570.0,111560.0,0.0834226]
[1760210247306,1.40590385,111570.0,111560.0,0.0325526]
[1760210247307,5.54931654,111570.0,111560.0,0.0325526]
[1760210247505,6.49223154,111570.0,111560.0,0.0075526]
[1760210248142,6.49324656,111570.0,111560.0,0.0075526]
[1760210248551,6.49324656,111570.0,111560.0,0.0065526]
[1760210248756,6.46611264,111570.0,111560.0,0.0065526]
[1760210248981,6.46611264,111570.0,111560.0,0.00635114]
[1760210250282,5.55263555,111570.0,111560.0,0.00635114]
[1760210250500,0.51925965,111570.0,111560.0,0.05722114]
[1760210250708,1.06590385,111570.0,111560.0,0.05722114]
[1760210250915,0.18529659,111580.0,111560.0,0.05722114]
[1760210251119,0.34,111570.0,111560.0,0.22888141]
[1760210251319,1.40590385,111570.0,111560.0,0.02918854]
[1760210251646,1.40590385,111570.0,111560.0,0.05722114]
[1760210251849,1.40590385,111570.0,111560.0,0.05822114]
[1760210252346,0.51925965,111570.0,111560.0,0.05822114]
[1760210252592,1.40590385,111570.0,111560.0,0.05822114]
[1760210252823,1.40590385,111570.0,111560.0,0.03486114]
[1760210253854,1.40590385,111570.0,111560.0,0.05822114]
[1760210255724,0.51925965,111570.0,111560.0,0.23749686]
[1760210255934,1.40590385,111570.0,111560.0,0.05822114]
[1760210256185,0.17925659,111580.0,111560.0,0.23749686]
[1760210256403,0.18821385,111590.0,111560.0,0.23749686]
[1760210256404,0.17923082,111590.0,111580.0,0.17924304]
[1760210256620,0.17923082,111590.0,111580.0,0.05087]
[1760210256829,1.06587502,111590.0,111580.0,0.05087]
[1760210257039,0.17922752,111590.0,111580.0,0.23011359]
[1760210257251,0.8866442,111590.0,111580.0,0.23011359]
[1760210257461,0.00015035,111600.0,111590.0,0.17922752]
[1760210257669,0.00015035,111600.0,111590.0,0.20673752]
[1760210257875,0.00015035,111600.0,111590.0,0.23009752]
[1760210259201,0.00015035,111600.0,111590.0,0.23109752]
[1760210260974,0.88679455,111600.0,111590.0,0.23109752]
[1760210261628,1.06600601,111600.0,111590.0,0.05187]
[1760210261807,0.88679455,111600.0,111590.0,0.23109752]
[1760210262034,0.00015035,111600.0,111590.0,0.23109752]
[1760210262173,0.88679455,111600.0,111590.0,0.23109752]
[1760210262381,0.88679455,111600.0,111590.0,0.23401711]
[1760210262601,0.17924359,111580.0,111560.0,0.02667853]
[1760210262803,1.06590385,111570.0,111560.0,0.00167854]
[1760210263007,1.20168272,111570.0,111560.0,0.00167854]
[1760210263423,1.1998902,111570.0,111560.0,0.00167854]
[1760210263628,1.43858896,111570.0,111560.0,0.00167854]
[1760210264271,1.43858896,111570.0,111560.0,0.00267854]
[1760210264470,1.43858896,111570.0,111560.0,0.00167854]
[1760210265031,1.40590385,111570.0,111560.0,0.00167854]
[1760210266720,1.40590385,111570.0,111560.0,0.01768854]
[1760210266923,1.40590385,111570.0,111560.0,0.02956854]
[1760210269290,1.42247336,111570.0,111560.0,0.02956854]
[1760210269963,1.42247612,111570.0,111560.0,0.02956854]
[1760210270168,1.42247612,111570.0,111560.0,0.00167854]
[1760210270493,1.40590385,111570.0,111560.0,0.00167854]
[1760210270892,0.51925965,111570.0,111560.0,0.00167854]
[1760210271196,0.51925965,111570.0,111560.0,0.02956854]
[1760210271197,1.42247379,111570.0,111560.0,0.02956854]
[1760210271438,1.42247379,111570.0,111560.0,0.01355854]
[1760210271809,1.42247379,111570.0,111560.0,0.02956854]
[1760210273705,1.42247379,111570.0,111560.0,0.03132116]
[1760210276047,0.51925965,111570.0,111560.0,0.05546116]
[1760210276253,0.33025936,111570.0,111560.0,0.05546116]
[1760210276431,0.50951901,111570.0,111560.0,0.05546116]
[1760210277062,1.39616321,111570.0,111560.0,0.05546116]
[1760210277684,0.50951901,111570.0,111560.0,0.05546116]
[1760210277891,1.39616321,111570.0,111560.0,0.05546116]
[1760210278309,0.50951901,111570.0,111560.0,0.05546116]
[1760210278514,0.17925965,111570.0,111560.0,0.05546116]
[1760210278723,1.06590385,111570.0,111560.0,0.05546116]
[1760210278929,0.17925965,111570.0,111560.0,0.05546116]
[1760210279845,0.17925965,111570.0,111560.0,0.07338873]
[1760210280063,0.17924453,111580.0,111560.0,0.25266445]
[1760210280266,0.17925965,111570.0,111560.0,0.20884426]
[1760210280448,0.17925965,111570.0,111560.0,0.02956854]
[1760210280912,0.17925965,111570.0,111560.0,0.23298426]
[1760210281653,0.17925965,111570.0,111560.0,0.23398426]
[1760210281917,0.17925965,111570.0,111560.0,0.05470854]
[1760210283019,0.17925965,111570.0,111560.0,0.23398426]
[1760210285535,1.40588873,111580.0,111570.0,0.00116831]
[1760210285726,1.40588873,111580.0,111570.0,0.05319831]
[1760210286131,1.40588873,111580.0,111570.0,0.06867725]
[1760210286746,0.51924453,111580.0,111570.0,0.06867725]
[1760210287165,1.07592769,111600.0,111570.0,0.06867725]
[1760210287372,1.41592769,111600.0,111590.0,0.01188]
[1760210287593,1.41592769,111600.0,111590.0,0.05203]
[1760210287784,0.52928349,111600.0,111590.0,0.05203]
[1760210288046,1.41592769,111600.0,111590.0,0.05203]
[1760210288267,1.41592769,111600.0,111590.0,0.23607885]
[1760210288268,0.18032292,111600.0,111590.0,0.23607885]
[1760210288469,0.18032292,111600.0,111590.0,0.23125752]
[1760210288849,0.18813861,111620.0,111600.0,0.17920998]
[1760210289055,0.18817905,111630.0,111610.0,0.24583114]
[1760210289252,0.18817905,111630.0,111620.0,0.21519935]
[1760210289455,0.18817905,111630.0,111620.0,0.23120935]
[1760210289663,0.82095653,111640.0,111620.0,0.23120935]
[1760210289869,1.16095653,111640.0,111630.0,0.01188]
[1760210290131,1.16095653,111640.0,111630.0,0.05203]
[1760210290355,0.82095653,111640.0,111630.0,0.06798988]
[1760210290607,0.18810708,111640.0,111630.0,0.05203]
[1760210290863,0.1791633,111630.0,111620.0,0.01188]
[1760210291100,0.81201275,111630.0,111620.0,0.01188]
[1760210291306,0.81201275,111630.0,111620.0,0.02789]
[1760210291784,0.81201275,111630.0,111620.0,0.05228]
[1760210292278,0.81201275,111630.0,111620.0,0.06701799]
[1760210292512,0.81201275,111630.0,111620.0,0.05228]
[1760210292743,0.1791633,111630.0,111620.0,0.05228]
[1760210293170,0.81201275,111630.0,111620.0,0.05228]
[1760210294072,0.81201275,111630.0,111620.0,0.24937728]
[1760210294413,0.1791633,111630.0,111620.0,0.23145935]
[1760210294994,0.1791633,111630.0,111620.0,0.05228]
[1760210295639,0.81201275,111630.0,111620.0,0.05228]
[1760210296043,0.1791633,111630.0,111620.0,0.05228]
[1760210296247,0.81201275,111630.0,111620.0,0.05228]
[1760210296889,0.1791633,111630.0,111620.0,0.05228]
[1760210297098,0.81201275,111630.0,111620.0,0.05228]
[1760210297993,0.1791633,111630.0,111620.0,0.05228]
[1760210298225,0.81376414,111630.0,111620.0,0.05228]
[1760210299046,0.84844681,111630.0,111620.0,0.02789]
[1760210299976,0.81376414,111630.0,111620.0,0.02789]
[1760210300183,0.81376414,111630.0,111620.0,0.05228]
[1760210301511,1.15376414,111630.0,111620.0,0.02789]
[1760210301723,0.17917935,111620.0,111610.0,0.03627]
[1760210301946,0.8120288,111620.0,111610.0,0.03627]
[1760210302184,0.8120288,111620.0,111610.0,0.05141]
[1760210303198,0.8120288,111620.0,111610.0,0.05241]
[1760210305097,0.8120288,111620.0,111610.0,0.23160541]
[1760210305655,0.8120288,111620.0,111610.0,0.05241]
[1760210307283,0.8131965,111620.0,111610.0,0.05241]
[1760210308329,0.18034705,111620.0,111610.0,0.23160541]
[1760210308666,0.8131965,111620.0,111610.0,0.23160541]
[1760210308858,1.1531965,111620.0,111610.0,0.05241]
[1760210309230,1.1531965,111620.0,111610.0,0.24952495]
[1760210309231,0.0011677,111620.0,111610.0,0.24952495]
[1760210309391,0.0011677,111620.0,111610.0,0.23160541]
[1760210310692,0.18034705,111620.0,111610.0,0.23160541]
[1760210310867,0.0011677,111620.0,111610.0,0.23160541]
[1760210312248,0.18034705,111620.0,111610.0,0.23160541]
[1760210312462,0.8131965,111620.0,111610.0,0.05241]
[1760210313457,1.1531965,111620.0,111610.0,0.05241]
[1760210314223,1.1531965,111620.0,111610.0,0.07929]
[1760210316104,0.52034705,111620.0,111610.0,0.25848541]
[1760210316303,1.1531965,111620.0,111610.0,0.25848541]
[1760210317348,0.52034705,111620.0,111610.0,0.07929]
[1760210317551,1.1531965,111620.0,111610.0,0.25848541]
[1760210320580,0.3411677,111620.0,111610.0,0.25848541]
[1760210322981,1.1531965,111620.0,111610.0,0.07929]
[1760210323183,1.1531965,111620.0,111610.0,0.25848541]
[1760210325105,1.1531965,111620.0,111610.0,0.07929]
[1760210325507,1.1531965,111620.0,111610.0,0.0549]
[1760210325711,1.18787917,111620.0,111610.0,0.0549]
[1760210325921,1.18787917,111620.0,111610.0,0.02788]
[1760210326535,1.00582263,111620.0,111610.0,0.02788]
[1760210326742,0.66753212,111620.0,111610.0,0.02788]
[1760210326947,0.84671147,111620.0,111610.0,0.02788]
[1760210327985,0.86335082,111620.0,111610.0,0.02788]
[1760210328367,5.87036279,111620.0,111610.0,0.02788]
[1760210328704,6.21036279,111620.0,111610.0,0.02788]
[1760210329371,6.84321224,111620.0,111610.0,0.02688]
[1760210330291,6.87009224,111620.0,111610.0,0.02688]
[1760210332358,6.85093427,111620.0,111610.0,0.02688]
[1760210332576,1.81957698,111610.0,111600.0,1e-08]
[1760210332777,5.50706546,111600.0,111590.0,1e-08]
[1760210332950,0.17924359,111580.0,111570.0,0.07162362]
[1760210333186,0.84677571,111580.0,111570.0,0.07177397]
[1760210333612,0.84677571,111580.0,111570.0,0.00015035]
[1760210334467,6.17462971,111580.0,111570.0,0.00015035]
[1760210334700,6.26334905,111580.0,111570.0,0.00015035]
[1760210334923,6.19119587,111580.0,111570.0,0.00015035]
[1760210335331,6.17462971,111580.0,111570.0,0.00015035]
[1760210338306,6.17462971,111580.0,111570.0,0.00248663]
[1760210338535,1.15209304,111580.0,111570.0,0.05483663]
[1760210339190,1.15209304,111580.0,111570.0,0.03029663]
[1760210339620,1.15209304,111580.0,111570.0,0.05483663]
[1760210339621,0.81209304,111580.0,111570.0,0.05483663]
[1760210340743,0.51924359,111580.0,111570.0,0.05483663]
[1760210340958,1.15209304,111580.0,111570.0,0.05483663]
[1760210341194,0.63284945,111590.0,111570.0,0.05483663]
[1760210341415,0.63284945,111590.0,111580.0,0.03828052]
[1760210341416,0.81208324,111590.0,111580.0,0.03828052]
[1760210341636,0.81208324,111590.0,111580.0,0.05235]
[1760210342071,1.15208324,111590.0,111580.0,0.05235]
[1760210342278,0.81208324,111590.0,111580.0,0.05235]
[1760210342461,0.81208324,111590.0,111580.0,0.02781]
[1760210342641,0.81208324,111590.0,111580.0,0.05235]
[1760210342843,1.15208324,111590.0,111580.0,0.05235]
[1760210343044,0.97284945,111590.0,111580.0,0.23159359]
[1760210343469,0.18815518,111610.0,111590.0,0.17921821]
[1760210343676,0.82100463,111610.0,111600.0,0.05235]
[1760210343910,0.81299221,111620.0,111600.0,0.23350008]
[1760210344062,0.81299221,111620.0,111610.0,0.0117]
[1760210344393,0.81299221,111620.0,111610.0,0.05235]
[1760210345213,0.81298981,111620.0,111610.0,0.05388622]
[1760210345418,0.00096101,111620.0,111610.0,0.23308163]
[1760210345624,0.00096101,111620.0,111610.0,0.23154541]
[1760210345825,0.00096101,111620.0,111610.0,0.26169731]
[1760210346054,0.17922206,111650.0,111610.0,0.26169731]
[1760210346055,0.81207151,111650.0,111630.0,0.1791633]
[1760210346273,0.81207151,111650.0,111640.0,0.05235]
[1760210346274,0.81213236,111650.0,111640.0,0.05235]
[1760210346461,0.81213236,111650.0,111640.0,0.23149725]
[1760210346611,0.63300115,111650.0,111640.0,0.23149725]
[1760210346815,0.0001517,111650.0,111640.0,0.23149725]
[1760210347024,0.82100818,111670.0,111640.0,0.26164915]
[1760210347248,0.17911517,111660.0,111650.0,0.03624]
[1760210347447,0.17911517,111660.0,111650.0,0.0117]
[1760210347670,0.17911517,111660.0,111650.0,0.02781]
[1760210347671,0.81196462,111660.0,111650.0,0.02781]
[1760210348038,0.81196462,111660.0,111650.0,0.05235]
[1760210348792,0.17911517,111660.0,111650.0,0.05235]
[1760210348992,0.81196462,111660.0,111650.0,0.05235]
[1760210349296,0.17911517,111660.0,111650.0,0.05235]
[1760210349639,0.81196462,111660.0,111650.0,0.05235]
[1760210349875,0.51911517,111660.0,111650.0,0.02781]
[1760210350119,1.15196462,111660.0,111650.0,0.05235]
[1760210351136,1.15196462,111660.0,111650.0,0.05335]
[1760210351610,1.40539118,111660.0,111650.0,0.05335]
[1760210351798,1.40539118,111660.0,111650.0,0.001]
[1760210351799,1.44007385,111660.0,111650.0,0.001]
[1760210351985,1.44007385,111660.0,111650.0,0.01617]
[1760210352184,1.44007385,111660.0,111650.0,0.02813]
[1760210352407,0.55379784,111660.0,111650.0,0.05311]
[1760210352531,0.34,111660.0,111650.0,0.23224121]
[1760210353576,0.17908309,111680.0,111660.0,0.17910182]
[1760210353776,0.51958865,111680.0,111670.0,0.06477554]
[1760210354148,0.00050556,111680.0,111670.0,0.24387467]
[1760210354354,0.00050556,111680.0,111670.0,0.23120913]
[1760210354985,0.51958865,111680.0,111670.0,0.05211]
[1760210355242,0.51958865,111680.0,111670.0,0.05311]
[1760210356023,0.00050556,111680.0,111670.0,0.23532362]
[1760210356222,0.00050556,111680.0,111670.0,0.23220913]
[1760210356933,0.17958865,111680.0,111670.0,0.23220913]
[1760210357211,0.17958865,111680.0,111670.0,0.05311]
[1760210357852,1.06586466,111680.0,111670.0,0.05311]
[1760210358024,0.17958865,111680.0,111670.0,0.05311]
[1760210358258,0.18308955,111680.0,111670.0,0.05311]
[1760210358637,1.06936556,111680.0,111670.0,0.05311]
[1760210359145,0.18308955,111680.0,111670.0,0.05311]
[1760210359294,0.00400646,111680.0,111670.0,0.24546689]
[1760210359495,0.00400646,111680.0,111670.0,0.23220913]
[1760210359701,0.00400646,111680.0,111670.0,0.26236103]
[1760210362719,0.00400646,111680.0,111670.0,0.0832619]
[1760210362720,1.40936556,111680.0,111670.0,0.0832619]
[1760210363385,0.34400646,111680.0,111670.0,0.26236103]
[1760210363590,0.52308955,111680.0,111670.0,0.26236103]
[1760210364236,0.52308955,111680.0,111670.0,0.0832619]
[1760210365035,0.52308955,111680.0,111670.0,0.26236103]
[1760210365607,0.34400646,111680.0,111670.0,0.26236103]
[1760210366413,0.00400646,111680.0,111670.0,0.26236103]
[1760210368072,0.00400646,111680.0,111670.0,0.0832619]
[1760210368290,0.00400646,111680.0,111670.0,0.05211]
[1760210368291,1.06936556,111680.0,111670.0,0.05211]
[1760210368506,1.06936556,111680.0,111670.0,0.05311]
[1760210368731,1.40936556,111680.0,111670.0,0.02813]
[1760210368963,1.40936556,111680.0,111670.0,0.001]
[1760210368964,6.43190223,111680.0,111670.0,0.001]
[1760210369379,6.45884412,111680.0,111670.0,0.001]
[1760210370391,6.47534405,111680.0,111670.0,0.001]
[1760210370682,0.51911517,111660.0,111650.0,0.02688]
[1760210370837,1.44007385,111660.0,111650.0,0.02688]
[1760210372142,1.45660713,111660.0,111650.0,0.02688]
[1760210372757,6.53318047,111660.0,111650.0,0.02688]
[1760210372959,0.17917935,111620.0,111610.0,0.08454455]
[1760210373181,1.40545536,111620.0,111610.0,0.12659455]
[1760210373391,1.40545536,111620.0,111610.0,0.02784093]
[1760210373636,1.44013803,111620.0,111610.0,0.00096093]
[1760210373755,6.56144611,111620.0,111610.0,0.00096093]
[1760210373957,6.52676344,111620.0,111610.0,1e-08]
[1760210374161,6.44462131,111620.0,111610.0,0.00100001]
[1760210374716,6.44462131,111620.0,111610.0,1e-08]
[1760210376070,6.44461246,111620.0,111610.0,1e-08]
[1760210376520,7.36104037,111620.0,111610.0,1e-08]
[1760210376758,7.40826643,111620.0,111610.0,1e-08]
[1760210376976,6.58251379,111620.0,111610.0,1e-08]
[1760210377396,6.5333318,111620.0,111610.0,1e-08]
[1760210377818,6.44461246,111620.0,111610.0,1e-08]
[1760210378900,1.06554587,111620.0,111610.0,0.02713001]
[1760210379110,1.06554587,111620.0,111610.0,0.05211001]
[1760210379675,1.40554587,111620.0,111610.0,0.02713001]
[1760210380498,1.40554587,111620.0,111610.0,1e-08]
[1760210380703,1.44022854,111620.0,111610.0,1e-08]
[1760210382650,1.40554587,111620.0,111610.0,1e-08]
[1760210383686,1.44022854,111620.0,111610.0,1e-08]
[1760210384044,6.51680188,111620.0,111610.0,1e-08]
[1760210385047,6.42808254,111620.0,111610.0,1e-08]
[1760210385847,6.44454561,111620.0,111610.0,1e-08]
[1760210386907,6.47150355,111620.0,111610.0,1e-08]
[1760210387561,1.44896688,111620.0,111610.0,1e-08]
[1760210387770,1.43250381,111620.0,111610.0,0.02746001]
[1760210388042,0.88636652,111620.0,111610.0,0.05069001]
[1760210388239,1.06554587,111620.0,111610.0,0.05069001]
[1760210388799,0.17926986,111620.0,111610.0,0.05069001]
[1760210388997,1.06554587,111620.0,111610.0,0.05069001]
[1760210389206,1.40554587,111620.0,111610.0,0.05069001]
[1760210390451,0.51926986,111620.0,111610.0,0.01196001]
[1760210390666,0.17927572,111560.0,111550.0,0.04015289]
[1760210390859,1.4402344,111560.0,111550.0,0.04015289]
[1760210391055,0.51927572,111560.0,111550.0,0.06761289]
[1760210391266,0.51927572,111560.0,111550.0,0.09084289]
[1760210391889,0.51936615,111560.0,111550.0,0.09084289]
[1760210393215,1.40564216,111560.0,111550.0,0.09084289]
[1760210393379,1.40564216,111560.0,111550.0,0.09184289]
[1760210393575,1.40564216,111560.0,111550.0,0.09084289]
[1760210393841,1.40564216,111560.0,111550.0,0.06761289]
[1760210393968,1.40564216,111560.0,111550.0,0.06861289]
[1760210395183,1.40564216,111560.0,111550.0,0.09184289]
[1760210395622,1.22636644,111560.0,111550.0,0.28681158]
[1760210395876,1.22636644,111560.0,111550.0,0.27113468]
[1760210396054,1.40564216,111560.0,111550.0,0.27113468]
[1760210396285,0.51936615,111560.0,111550.0,0.09184289]
[1760210396487,0.51936615,111560.0,111550.0,0.09534812]
[1760210397927,1.06564216,111560.0,111550.0,0.09534812]
[1760210398577,0.17929179,111550.0,111510.0,0.05015]
[1760210398812,0.17929179,111550.0,111500.0,5.060958]
[1760210398813,0.30435609,111510.0,111500.0,5.060958]
[1760210398945,1.2187821,111510.0,111500.0,5.060958]
[1760210399955,1.21887247,111510.0,111500.0,5.060958]
[1760210400151,1.22890356,111510.0,111500.0,5.060958]
[1760210400541,1.25226356,111510.0,111500.0,4.61808677]
[1760210400828,1.28694623,111510.0,111500.0,4.5529812]
[1760210401203,1.25226356,111510.0,111500.0,4.5529812]
[1760210401398,2.47853957,111510.0,111500.0,4.01558013]
[1760210401597,2.47853957,111510.0,111500.0,3.88866173]
[1760210401598,7.50107624,111510.0,111500.0,3.88866173]
[1760210401799,7.58979558,111510.0,111500.0,3.88866173]
[1760210402012,7.58979558,111510.0,111500.0,3.6789093]
[1760210402238,7.60632438,111510.0,111500.0,3.01826331]
[1760210402443,7.63647628,111510.0,111500.0,1.23680421]
[1760210402649,7.63647628,111510.0,111460.0,0.00296736]
[1760210402650,0.68016522,111470.0,111460.0,0.00296736]
[1760210402859,0.68016522,111470.0,111450.0,0.00395997]
[1760210402860,5.03816244,111460.0,111450.0,0.00395997]
[1760210403060,6.86134894,111460.0,111450.0,1e-08]
[1760210403286,0.46499998,111420.0,111410.0,0.03888]
[1760210403495,0.27950097,111420.0,111410.0,0.03888]
[1760210403695,1.09077698,111420.0,111410.0,0.06377185]
[1760210403902,0.02499999,111420.0,111410.0,0.08750339]
[1760210404104,1.09075488,111440.0,111410.0,0.27329045]
[1760210404307,1.09075488,111440.0,111430.0,0.01196]
[1760210404308,0.12499998,111440.0,111430.0,0.01196]
[1760210404534,1.01127599,111440.0,111430.0,0.055405]